fUSD/lending_fUSD_20241023
["ID","MTS","AMOUNT","RATE_DAILY","PERIOD"]
[340705211,1729695112140,-500.0,0.00052537,120]
[340705212,1729695112149,-651.7,0.00052537,120]
[340705213,1729695112159,-500.0,0.00052537,120]
[340705214,1729695112170,-500.0,0.00052537,120]
[340705215,1729695112180,-505.6,0.00052537,120]
[340705216,1729695112193,-531.83,0.00052537,120]
[340705217,1729695112204,-861.3,0.00052537,120]
[340705218,1729695112215,-645.91,0.00052537,120]
[340705219,1729695112225,-500.0,0.00052537,120]
[340705220,1729695112235,-1300.94,0.00052537,120]
[340705221,1729695112246,-2414.78,0.00052537,120]
[340705222,1729695112257,-252.13127532,0.00052537,120]
[340705223,1729695112266,-500.0,0.00052537,120]
[340705224,1729695112279,-541.02760115,0.00052537,120]
[340705225,1729695112290,-500.0,0.00052537,120]
[340705226,1729695112301,-500.0,0.00052537,120]
[340705227,1729695112313,-1666.47,0.00052537,120]
[340705228,1729695112325,-500.0,0.00052537,120]
[340705229,1729695112336,-152.0,0.00052547,3]
[340705230,1729695112347,-2748.4793619,0.00052573,2]
[340705231,1729695112357,-299.69,0.00052599,2]
[340705232,1729695112367,-1038.31,0.00052607,120]
[340705233,1729695112376,-500.0,0.00052607,120]
[340705234,1729695112387,-1396.2,0.00052607,120]
[340705235,1729695112398,-2499.88,0.00052607,120]
[340705236,1729695112408,-581.14,0.00052607,120]
[340705237,1729695112419,-2403.29,0.00052607,120]
[340705238,1729695112429,-2393.31,0.00052607,120]
[340705239,1729695112440,-1078.45,0.00052607,120]
[340705240,1729695112451,-1462.44,0.00052607,120]
[340705241,1729695112461,-865.81,0.00052607,120]
[340705242,1729695112471,-596.71,0.00052607,120]
[340705243,1729695112480,-1434.43,0.00052607,120]
[340705244,1729695112490,-539.87,0.00052607,120]
[340705245,1729695112500,-6123.06,0.00052607,120]
[340705246,1729695112509,-500.0,0.00052607,120]
[340705247,1729695112519,-500.0,0.00052607,120]
[340705248,1729695112529,-551.7,0.00052608,120]
[340705249,1729695112539,-500.0,0.00052608,120]
[340705250,1729695112548,-500.0,0.00052608,120]
[340705251,1729695112558,-1279.4,0.00052608,120]
[340705252,1729695112568,-500.0,0.00052608,120]
[340705253,1729695112577,-541.69,0.00052608,120]
[340705254,1729695112587,-500.0,0.00052608,120]
[340705255,1729695112596,-500.0,0.00052608,120]
[340705256,1729695112607,-575.26415426,0.00052608,120]
[340705257,1729695112617,-800.5,0.00052608,120]
[340705258,1729695112626,-829.74,0.00052608,120]
[340705259,1729695112635,-500.0,0.00052608,120]
[340705260,1729695112644,-831.97,0.00052608,120]
[340705261,1729695112654,-500.0,0.00052608,120]
[340705262,1729695112663,-3068.62,0.00052608,120]
[340705263,1729695112673,-2062.02,0.00052608,120]
[340705264,1729695112683,-636.42,0.00052608,120]
[340705265,1729695112692,-632.86,0.00052608,120]
[340705266,1729695112702,-521.15,0.00052608,120]
[340705267,1729695112711,-500.0,0.00052608,120]
[340705268,1729695112720,-500.0,0.00052608,120]
[340705269,1729695112730,-1010.38,0.00052608,120]
[340705270,1729695112740,-500.0,0.00052608,120]
[340705271,1729695112750,-500.0,0.00052608,120]
[340705272,1729695112760,-829.76,0.00052608,120]
[340705273,1729695112769,-710.82,0.00052608,120]
[340705274,1729695112779,-500.0,0.00052608,120]
[340705275,1729695112788,-500.0,0.00052608,120]
[340705276,1729695112797,-500.0,0.00052608,120]
[340705277,1729695112807,-500.0,0.00052608,120]
[340705278,1729695112817,-500.0,0.00052608,120]
[340705279,1729695112827,-489.9459928,0.00052608,120]
[340705280,1729695112836,-500.0,0.00052608,120]
[340705281,1729695112845,-2091.95,0.00052608,120]
[340705282,1729695112855,-285.083403,0.00052608,120]
[340705283,1729695112865,-405.89748,0.00052608,120]
[340705284,1729695112875,-15318.09,0.00052608,120]
[340705285,1729695112884,-500.0,0.00052608,120]
[340705286,1729695112893,-696.58,0.00052608,120]
[340705287,1729695112904,-500.0,0.00052608,120]
[340705288,1729695112916,-956.6,0.00052608,120]
[340705289,1729695112928,-500.0,0.00052608,120]
[340705290,1729695112939,-500.0,0.00052608,120]
[340705291,1729695112950,-1237.23,0.00052608,120]
[340705292,1729695112960,-500.0,0.00052608,120]
[340705293,1729695112972,-500.0,0.00052608,120]
[340705294,1729695112982,-542.65918957,0.00052608,120]
[340705295,1729695112992,-500.0,0.00052608,120]
[340705296,1729695113002,-500.0,0.00052608,120]
[340705297,1729695113014,-500.0,0.00052608,120]
[340705298,1729695113023,-5655.78,0.00052608,21]
[340705299,1729695113034,-500.0,0.00052608,120]
[340705300,1729695113045,-586.37584174,0.00052608,120]
[340705301,1729695113056,-500.0,0.00052608,120]
[340705302,1729695113065,-1801.94,0.00052608,120]
[340705303,1729695113074,-1551.48,0.00052608,120]
[340705304,1729695113084,-500.0,0.00052608,120]
[340705305,1729695113093,-946.91,0.00052608,120]
[340705306,1729695113103,-2527.52,0.00052608,120]
[340705307,1729695113114,-1036.64,0.00052608,120]
[340705308,1729695113124,-500.0,0.00052608,120]
[340705309,1729695113134,-2104.19,0.00052608,120]
[340705310,1729695113144,-500.0,0.00052608,120]
[340705311,1729695113154,-500.0,0.00052608,120]
[340705312,1729695113165,-500.0,0.00052608,120]
[340705313,1729695113174,-500.0,0.00052608,120]
[340705314,1729695113184,-514.44,0.00052608,120]
[340705315,1729695113193,-500.0,0.00052609,120]
[340705316,1729695113203,-500.0,0.00052609,120]
[340705317,1729695113213,-500.0,0.00052609,120]
[340705318,1729695113223,-500.0,0.00052609,120]
[340705319,1729695113232,-546.83,0.00052609,120]
[340705320,1729695113242,-527.01,0.00052609,120]
[340705321,1729695113252,-633.57,0.00052609,120]
[340705322,1729695113262,-500.0,0.00052609,120]
[340705323,1729695113272,-500.0,0.00052609,120]
[340705324,1729695113282,-548.76,0.00052609,120]
[340705325,1729695113291,-500.0,0.00052609,120]
[340705326,1729695113300,-500.0,0.00052609,120]
[340705327,1729695113310,-604.00473135,0.00052609,120]
[340705328,1729695113319,-500.0,0.00052609,120]
[340705329,1729695113328,-500.0,0.00052609,120]
[340705330,1729695113338,-500.0,0.00052609,120]
[340705331,1729695113347,-552.51,0.00052609,120]
[340705332,1729695113357,-500.0,0.00052609,120]
[340705333,1729695113367,-1010.74,0.00052609,120]
[340705334,1729695113376,-226.36,0.00052609,120]
[340705335,1729695113386,-500.0,0.00052609,120]
[340705336,1729695113395,-500.0,0.00052609,120]
[340705337,1729695113405,-500.0,0.00052609,120]
[340705338,1729695113415,-664.87,0.00052609,120]
[340705339,1729695113424,-1025.87,0.00052609,120]
[340705340,1729695113434,-500.0,0.00052609,120]
[340705341,1729695113443,-500.0,0.00052609,120]
[340705342,1729695113453,-500.0,0.00052609,120]
[340705343,1729695113463,-500.0,0.00052609,120]
[340705344,1729695113473,-500.0,0.00052609,120]
[340705345,1729695113482,-588.83,0.00052609,120]
[340705346,1729695113491,-2381.92,0.00052609,120]
[340705347,1729695113501,-500.0,0.00052609,120]
[340705348,1729695113511,-1507.06,0.00052609,120]
[340705349,1729695113520,-500.0,0.00052609,120]
[340705350,1729695113530,-3850.95,0.00052609,120]
[340705351,1729695113539,-500.0,0.00052609,120]
[340705352,1729695113548,-618.02,0.00052609,120]
[340705353,1729695113560,-500.0,0.00052609,120]
[340705354,1729695113570,-1937.11,0.00052609,120]
[340705355,1729695113582,-2061.54,0.00052609,120]
[340705356,1729695113592,-500.0,0.00052609,120]
[340705357,1729695113602,-2726.69,0.00052609,120]
[340705358,1729695113613,-500.0,0.00052609,120]
[340705359,1729695113623,-500.0,0.00052609,120]
[340705360,1729695113633,-812.34,0.00052609,120]
[340705361,1729695113644,-840.01,0.00052609,120]
[340705362,1729695113655,-1694.03,0.00052609,120]
[340705363,1729695113665,-1245.48,0.00052609,120]
[340705364,1729695113675,-500.0,0.00052609,120]
[340705365,1729695113686,-500.0,0.00052609,120]
[340705366,1729695113696,-1202.0,0.00052609,120]
[340705367,1729695113706,-2671.09,0.00052609,120]
[340705368,1729695113717,-500.0,0.00052609,120]
[340705369,1729695113727,-500.0,0.00052709,120]
[340705370,1729695113739,-517.46,0.00052709,120]
[340705371,1729695113750,-500.0,0.00052709,120]
[340705372,1729695113760,-500.0,0.00052709,120]
[340705373,1729695113772,-688.94,0.00052709,120]
[340705374,1729695113785,-3187.68,0.00052709,120]
[340705375,1729695113797,-720.0,0.00052709,120]
[340705376,1729695113807,-1671.38,0.00052709,120]
[340705377,1729695113816,-1870.15,0.00052709,120]
[340705378,1729695113830,-548.44,0.00052709,120]
[340705379,1729695113839,-639.46,0.00052709,120]
[340705380,1729695113849,-500.0,0.00052709,120]
[340705381,1729695113862,-949.63,0.00052709,120]
[340705382,1729695113872,-5070.58,0.00052709,120]
[340705383,1729695113881,-2860.91,0.00052709,120]
[340705384,1729695113890,-4127.93,0.00052709,120]
[340705385,1729695113900,-500.0,0.0005271,120]
[340705386,1729695113910,-172.0,0.0005271,120]
[340705387,1729695113919,-500.0,0.0005271,120]
[340705388,1729695113929,-500.0,0.0005271,120]
[340705389,1729695113938,-500.0,0.0005271,120]
[340705390,1729695114103,-500.0,0.0005271,120]
[340705391,1729695114115,-500.0,0.0005271,120]
[340705392,1729695114125,-500.0,0.0005271,120]
[340705393,1729695114134,-500.0,0.0005271,120]
[340705394,1729695114143,-500.0,0.0005271,120]
[340705395,1729695114152,-500.0,0.0005271,120]
[340705396,1729695114161,-500.0,0.0005271,120]
[340705397,1729695114170,-704.8,0.0005271,120]
[340705398,1729695114180,-851.17,0.0005271,120]
[340705399,1729695114189,-348.74647833,0.0005271,120]
[340705400,1729695114198,-1610.91,0.0005271,120]
[340705401,1729695114208,-2404.26,0.0005271,120]
[340705402,1729695114217,-500.0,0.0005271,120]
[340705403,1729695114226,-2023.4,0.0005271,120]
[340705404,1729695114236,-610.2,0.0005271,120]
[340705405,1729695114244,-1452.47,0.0005271,120]
[340705406,1729695114254,-831.56,0.0005271,120]
[340705407,1729695114263,-623.53,0.0005271,120]
[340705408,1729695114272,-500.0,0.0005271,120]
[340705409,1729695114282,-777.0,0.0005271,120]
[340705410,1729695114291,-590.11,0.0005271,120]
[340705411,1729695114300,-750.0,0.00052739,14]
[340705412,1729695114310,-500.0,0.00052783,120]
[340705413,1729695114319,-2110.0,0.00052794,2]
[340705414,1729695114329,-500.0,0.00052798,120]
[340705415,1729695114338,-722.51,0.00052798,120]
[340705416,1729695114347,-1345.84,0.00052798,120]
[340705417,1729695114356,-1084.74,0.00052798,120]
[340705418,1729695114367,-500.0,0.00052798,120]
[340705419,1729695114376,-500.0,0.00052798,120]
[340705420,1729695114386,-1845.24,0.00052798,120]
[340705421,1729695114395,-841.4,0.00052798,120]
[340705422,1729695114404,-500.0,0.00052798,120]
[340705423,1729695114413,-678.77,0.00052798,120]
[340705424,1729695114422,-564.76,0.00052798,120]
[340705425,1729695114431,-550.03,0.00052798,120]
[340705426,1729695114440,-500.0,0.00052798,120]
[340705427,1729695114449,-531.72,0.00052798,120]
[340705428,1729695114458,-500.0,0.00052798,120]
[340705429,1729695114468,-1168.65,0.00052798,120]
[340705430,1729695114477,-500.0,0.00052798,120]
[340705431,1729695114486,-500.0,0.00052798,120]
[340705432,1729695114495,-500.0,0.00052798,120]
[340705433,1729695114506,-501.98740447,0.00052798,120]
[340705434,1729695114516,-500.0,0.00052798,120]
[340705435,1729695114526,-500.0,0.00052798,120]
[340705436,1729695114535,-582.29,0.00052798,120]
[340705437,1729695114545,-500.0,0.00052798,120]
[340705438,1729695114554,-500.0,0.00052798,120]
[340705439,1729695114564,-500.0,0.00052798,120]
[340705440,1729695114574,-228.28653924,0.00052798,120]
[340705441,1729695114583,-386.8242953,0.00052798,120]
[340705442,1729695114593,-323.3728477,0.00052798,120]
[340705443,1729695114602,-500.0,0.00052798,120]
[340705444,1729695114616,-735.4,0.00052798,120]
[340705445,1729695114626,-868.01,0.00052798,7]
[340705446,1729695114635,-1768.35,0.00052798,120]
[340705447,1729695114644,-500.0,0.00052798,120]
[340705448,1729695114654,-500.0,0.00052798,120]
[340705449,1729695114664,-812.19,0.00052798,120]
[340705450,1729695114674,-500.0,0.00052798,120]
[340705451,1729695114683,-521.61,0.00052798,120]
[340705452,1729695114693,-500.0,0.00052798,120]
[340705453,1729695114702,-641.46,0.00052798,120]
[340705454,1729695114712,-500.0,0.00052798,120]
[340705455,1729695114721,-500.0,0.00052798,120]
[340705456,1729695114731,-683.15,0.00052798,120]
[340705457,1729695114739,-500.0,0.00052798,120]
[340705458,1729695114749,-500.0,0.00052798,120]
[340705459,1729695114758,-500.0,0.00052798,120]
[340705460,1729695114768,-500.0,0.00052798,120]
[340705461,1729695114777,-534.35,0.00052798,120]
[340705462,1729695114787,-500.0,0.00052798,120]
[340705463,1729695114797,-549.24,0.00052798,120]
[340705464,1729695114808,-947.82,0.00052798,120]
[340705465,1729695114817,-717.45,0.00052798,120]
[340705466,1729695114828,-500.0,0.00052798,120]
[340705467,1729695114838,-500.0,0.00052798,120]
[340705468,1729695114849,-500.0,0.00052798,120]
[340705469,1729695114859,-500.0,0.00052798,120]
[340705470,1729695114869,-404.80903025,0.00052798,120]
[340705471,1729695114879,-500.0,0.00052798,120]
[340705472,1729695114889,-500.0,0.00052798,120]
[340705473,1729695114899,-909.83,0.00052798,120]
[340705474,1729695114909,-500.0,0.00052798,120]
[340705475,1729695114919,-500.0,0.00052798,120]
[340705476,1729695114929,-500.0,0.00052798,120]
[340705477,1729695114938,-810.49,0.00052798,120]
[340705478,1729695114947,-500.0,0.00052798,120]
[340705479,1729695114957,-500.0,0.00052798,120]
[340705480,1729695114966,-500.0,0.00052798,120]
[340705481,1729695114976,-638.91,0.00052798,120]
[340705482,1729695114986,-500.0,0.00052798,120]
[340705483,1729695114996,-361.95505306,0.00052798,120]
[340705484,1729695115006,-500.0,0.00052798,120]
[340705485,1729695115015,-500.0,0.00052798,120]
[340705486,1729695115025,-500.0,0.00052798,120]
[340705487,1729695115035,-500.0,0.00052798,120]
[340705488,1729695115044,-500.0,0.00052798,120]
[340705489,1729695115053,-500.0,0.00052798,120]
[340705490,1729695115063,-500.0,0.00052798,14]
[340705491,1729695115072,-500.0,0.00052798,120]
[340705492,1729695115082,-500.0,0.00052798,120]
[340705493,1729695115091,-500.0,0.00052798,120]
[340705494,1729695115101,-500.0,0.00052798,120]
[340705495,1729695115111,-500.0,0.00052798,120]
[340705496,1729695115121,-500.0,0.00052798,120]
[340705497,1729695115130,-500.0,0.00052798,120]
[340705498,1729695115140,-1263.1,0.00052798,120]
[340705499,1729695115150,-500.0,0.00052798,120]
[340705500,1729695115160,-500.0,0.00052798,120]
[340705501,1729695115170,-564.29,0.00052798,120]
[340705502,1729695115179,-500.0,0.00052798,120]
[340705503,1729695115189,-557.88,0.00052798,120]
[340705504,1729695115199,-500.0,0.00052798,120]
[340705505,1729695115208,-500.0,0.00052798,120]
[340705506,1729695115218,-500.0,0.00052798,120]
[340705507,1729695115229,-686.88,0.00052798,120]
[340705508,1729695115239,-585.56,0.00052798,120]
[340705509,1729695115248,-500.0,0.00052798,120]
[340705510,1729695115258,-394.92320581,0.00052798,120]
[340705511,1729695115268,-676.0,0.00052798,120]
[340705512,1729695115277,-500.0,0.00052798,120]
[340705513,1729695115286,-659.49,0.00052798,120]
[340705514,1729695115296,-500.0,0.00052798,120]
[340705515,1729695115306,-500.0,0.00052798,120]
[340705516,1729695115316,-500.0,0.00052798,120]
[340705517,1729695115326,-1865.84,0.00052798,120]
[340705518,1729695115335,-500.0,0.00052798,120]
[340705519,1729695115345,-500.0,0.00052798,120]
[340705520,1729695115355,-151.0,0.00052799,2]
[340705521,1729695115367,-500.0,0.00052799,5]
[340705522,1729695115376,-537.46,0.00052799,120]
[340705523,1729695115387,-500.0,0.00052799,120]
[340705524,1729695115397,-500.0,0.00052799,120]
[340705525,1729695115407,-662.0,0.00052799,120]
[340705526,1729695115417,-500.0,0.00052799,120]
[340705527,1729695115427,-791.08,0.00052799,120]
[340705528,1729695115436,-500.0,0.00052799,120]
[340705529,1729695115446,-500.0,0.00052799,120]
[340705530,1729695115456,-763.78,0.00052799,120]
[340705531,1729695115466,-452.71247205,0.00052799,120]
[340705532,1729695115475,-571.59,0.00052799,120]
[340705533,1729695115484,-500.0,0.00052799,120]
[340705534,1729695115494,-500.0,0.00052799,120]
[340705535,1729695115503,-364.95012092,0.00052799,120]
[340705536,1729695115513,-642.76532598,0.00052799,120]
[340705537,1729695115523,-500.0,0.00052799,120]
[340705538,1729695115532,-805.88,0.00052799,120]
[340705539,1729695115542,-500.0,0.00052799,120]
[340705540,1729695115552,-15812.93028412,0.00052799,15]
[340705541,1729695115562,-562.49874691,0.0005281,120]
[340705542,1729695115572,-500.0,0.0005281,120]
[340705543,1729695115581,-633.36,0.0005281,120]
[340705544,1729695115591,-674.13,0.0005281,120]
[340705545,1729695115601,-1233.24,0.0005281,7]
[340705546,1729695115611,-500.0,0.0005281,120]
[340705547,1729695115621,-500.0,0.0005281,120]
[340705548,1729695115630,-500.0,0.0005281,60]
[340705549,1729695115639,-500.0,0.0005281,120]
[340705550,1729695115649,-500.0,0.0005281,120]
[340705551,1729695115659,-256.62609104,0.0005281,120]
[340705552,1729695115669,-500.0,0.0005281,120]
[340705553,1729695115678,-500.0,0.0005281,120]
[340705554,1729695115687,-500.0,0.0005281,120]
[340705555,1729695115697,-500.0,0.0005281,120]
[340705556,1729695115706,-623.29,0.0005281,120]
[340705557,1729695115716,-184.45346438,0.0005281,120]
[340705558,1729695115725,-500.0,0.0005281,120]
[340705559,1729695115735,-500.0,0.0005281,120]
[340705560,1729695115745,-616.53,0.0005281,120]
[340705561,1729695115754,-500.0,0.0005281,120]
[340705562,1729695115763,-500.0,0.0005281,120]
[340705563,1729695115772,-500.0,0.0005281,120]
[340705564,1729695115782,-500.0,0.0005281,120]
[340705565,1729695115792,-533.17,0.0005281,120]
[340705566,1729695115801,-557.53,0.0005281,120]
[340705567,1729695115811,-526.44935745,0.0005281,120]
[340705568,1729695115822,-500.0,0.0005281,120]
[340705569,1729695115835,-500.0,0.0005281,120]
[340705570,1729695115845,-500.0,0.0005281,120]
[340705571,1729695115855,-761.83,0.0005281,120]
[340705572,1729695115869,-452.23878411,0.0005281,120]
[340705573,1729695115879,-500.0,0.0005281,120]
[340705574,1729695115888,-245.76389326,0.0005281,120]
[340705575,1729695115897,-500.0,0.0005281,120]
[340705576,1729695115907,-500.0,0.0005281,120]
[340705577,1729695115917,-500.0,0.0005281,120]
[340705578,1729695115927,-1259.92,0.0005281,120]
[340705579,1729695115936,-500.0,0.0005281,120]
[340705580,1729695115946,-500.0,0.0005281,120]
[340705581,1729695115955,-500.0,0.0005281,120]
[340705582,1729695115964,-543.61382227,0.0005281,120]
[340705583,1729695115974,-500.0,0.0005281,120]
[340705584,1729695115984,-500.0,0.0005281,120]
[340705585,1729695115994,-500.0,0.0005281,120]
[340705586,1729695116004,-500.0,0.0005281,120]
[340705587,1729695116013,-500.0,0.0005281,120]
[340705588,1729695116023,-500.0,0.0005281,120]
[340705589,1729695116032,-500.0,0.0005281,120]
[340705590,1729695116042,-591.95,0.0005281,120]
[340705591,1729695116051,-1926.93,0.0005281,120]
[340705592,1729695116060,-500.0,0.0005281,120]
[340705593,1729695116070,-500.0,0.0005281,120]
[340705594,1729695116079,-1953.12,0.0005281,120]
[340705595,1729695116089,-500.0,0.0005281,120]
[340705596,1729695116098,-1316.14,0.0005281,120]
[340705597,1729695116107,-513.64,0.0005281,120]
[340705598,1729695116123,-1902.26,0.0005281,120]
[340705599,1729695116133,-500.0,0.0005281,120]
[340705600,1729695116142,-699.33,0.0005281,120]
[340705601,1729695116151,-2403.72,0.0005281,120]
[340705602,1729695116161,-686.38,0.0005281,120]
[340705603,1729695116170,-500.0,0.0005281,120]
[340705604,1729695116179,-631.69,0.0005281,120]
[340705605,1729695116189,-500.0,0.0005281,120]
[340705606,1729695116199,-2091.96,0.0005281,120]
[340705607,1729695116208,-549.51,0.0005281,120]
[340705608,1729695116217,-501.15,0.0005281,120]
[340705609,1729695116227,-2666.93,0.0005281,120]
[340705610,1729695116238,-1895.2,0.0005281,120]
[340705611,1729695116248,-500.0,0.0005281,120]
[340705612,1729695116258,-639.01,0.0005281,120]
[340705613,1729695116268,-2056.13,0.0005281,120]
[340705614,1729695116277,-500.0,0.0005281,120]
[340705615,1729695116289,-739.87,0.0005281,120]
[340705616,1729695116300,-500.0,0.00052811,120]
[340705617,1729695116310,-500.0,0.00052811,120]
[340705618,1729695116322,-651.7,0.00052811,120]
[340705619,1729695116332,-500.0,0.00052811,120]
[340705620,1729695116341,-500.0,0.00052811,120]
[340705621,1729695116351,-505.6,0.00052811,120]
[340705622,1729695116366,-531.83,0.00052811,120]
[340705623,1729695116375,-861.3,0.00052811,120]
[340705624,1729695116384,-645.91,0.00052811,120]
[340705625,1729695116393,-500.0,0.00052811,120]
[340705626,1729695116403,-1300.94,0.00052811,120]
[340705627,1729695116412,-2414.78,0.00052811,120]
[340705628,1729695116421,-500.0,0.00052811,120]
[340705629,1729695116430,-500.0,0.00052811,120]
[340705630,1729695116440,-500.0,0.00052811,120]
[340705631,1729695116449,-1666.47,0.00052811,120]
[340705632,1729695116459,-566.04959202,0.00052811,120]
[340705633,1729695116469,-932.1354667,0.00052844,2]
[340705634,1729695116478,-8287.9718982,0.00052844,2]
[340705635,1729695116487,-41014.2348333,0.00052844,2]
[340705636,1729695116497,-1729.7795666,0.00052844,2]
[340705637,1729695116506,-12530.89249313,0.0005288,30]
[340705638,1729695116918,-771.144,0.0005288,30]
[340705639,1729695116932,-837.36443718,0.0005288,30]
[340705640,1729695116943,-67592.31088202,0.0005288,30]
[340705641,1729695116955,-526.39246623,0.0005288,30]
[340705642,1729695117012,-635.23227403,0.0005288,30]
[340705643,1729695117024,-685.73025318,0.0005288,30]
[340705644,1729695117036,-257.8681381,0.0005288,30]
[340705645,1729695117048,-343.2318375,0.0005288,30]
[340705646,1729695117089,-429.33137745,0.0005288,30]
[340705647,1729695117540,-327.32863549,0.00051238,120]
[340705648,1729695117598,-414.72136451,0.00051238,120]
[340705649,1729695117607,-620.51,0.00051339,120]
[340705650,1729695117618,-742.05,0.00051512,120]
[340705651,1729695117627,-620.51,0.00051613,120]
[340705652,1729695117636,-742.05,0.00051786,120]
[340705653,1729695117646,-620.51,0.00051887,120]
[340705654,1729695117656,-742.05,0.0005206,120]
[340705655,1729695117666,-620.51,0.00052161,120]
[340705656,1729695117677,-742.05,0.00052334,120]
[340705657,1729695117687,-620.51,0.00052435,120]
[340705658,1729695117697,-742.05,0.00052608,120]
[340705659,1729695117708,-620.51,0.00052709,120]
[340705660,1729695117718,-14913.17772205,0.0005288,30]
[340705661,1729695117735,-8441.5000006,0.0005288,30]
[340705662,1729695117747,-731.6387203,0.0005288,30]
[340705663,1729695118023,-17757.73552861,0.0005288,30]
[340705664,1729695118285,-1033.64960708,0.00048789,30]
[340705665,1729695118295,-509.09991856,0.00049595,120]
[340705666,1729695118304,-346695.34768456,0.0005288,30]
[340705667,1729695118314,-1038.31,0.00052881,120]
[340705668,1729695118324,-638.3033365,0.00052881,120]
[340705669,1729695118335,-1396.2,0.00052881,120]
[340705670,1729695118345,-2499.88,0.00052881,120]
[340705671,1729695118354,-581.14,0.00052881,120]
[340705672,1729695118370,-2403.29,0.00052881,120]
[340705673,1729695118380,-2393.31,0.00052881,120]
[340705674,1729695118390,-1078.45,0.00052881,120]
[340705675,1729695118400,-1462.44,0.00052881,120]
[340705676,1729695118410,-865.81,0.00052881,120]
[340705677,1729695118419,-596.71,0.00052881,120]
[340705678,1729695118429,-1434.43,0.00052881,120]
[340705679,1729695118439,-539.87,0.00052881,120]
[340705680,1729695118449,-6123.06,0.00052881,120]
[340705681,1729695118458,-500.0,0.00052881,120]
[340705682,1729695118467,-500.0,0.00052881,120]
[340705683,1729695118477,-551.7,0.00052882,120]
[340705684,1729695118487,-500.0,0.00052882,120]
[340705685,1729695118497,-500.0,0.00052882,120]
[340705686,1729695118507,-1279.4,0.00052882,120]
[340705687,1729695118517,-500.0,0.00052882,120]
[340705688,1729695118527,-541.69,0.00052882,120]
[340705689,1729695118537,-500.0,0.00052882,120]
[340705690,1729695118546,-500.0,0.00052882,120]
[340705691,1729695118556,-800.5,0.00052882,120]
[340705692,1729695118566,-829.74,0.00052882,120]
[340705693,1729695118575,-500.0,0.00052882,120]
[340705694,1729695118585,-831.97,0.00052882,120]
[340705695,1729695118595,-500.0,0.00052882,120]
[340705696,1729695118604,-2062.02,0.00052882,120]
[340705697,1729695118614,-636.42,0.00052882,120]
[340705698,1729695118623,-632.86,0.00052882,120]
[340705699,1729695118633,-521.15,0.00052882,120]
[340705700,1729695118642,-500.0,0.00052882,120]
[340705701,1729695118652,-500.0,0.00052882,120]
[340705702,1729695118661,-54.91398708,0.00052882,120]
[340705703,1729695118677,-855.65800931,0.00052882,120]
[340705704,1729695118689,-99.80800361,0.00052882,120]
[340705705,1729695118699,-500.0,0.00052882,120]
[340705706,1729695118708,-500.0,0.00052882,120]
[340705707,1729695118718,-829.76,0.00052882,120]
[340705708,1729695118727,-710.82,0.00052882,120]
[340705709,1729695118737,-500.0,0.00052882,120]
[340705710,1729695118746,-500.0,0.00052882,120]